bitfinex-derivatives/quotes_SOLF0:USTF0_20250307
["timestamp","ask_amount","ask_price","bid_price","bid_amount"]
[1741376249824,40.89756641,147.21,147.13,3.9806]
[1741376250027,40.89756641,147.21,147.13,7.59422517]
[1741376250527,40.89756641,147.21,147.13,3.9806]
[1741376250730,6.7952,147.18,147.14,6.7966]
[1741376251029,0.04363337,147.17,147.15,0.04596682]
[1741376252534,0.04363337,147.17,147.15,3.65959199]
[1741376253433,0.04363337,147.17,147.15,0.04596682]
[1741376254435,0.04363337,147.17,147.16,6.7958]
[1741376255129,0.04363337,147.17,147.16,3.61362517]
[1741376255732,0.04363337,147.17,147.16,6.7958]
[1741376256330,32.6,147.23,147.15,0.04596682]
[1741376256529,32.6,147.26,147.15,0.04596682]
[1741376256730,13.5767,147.33,147.14,40.89756641]
[1741376257028,80.28856641,147.27,147.23,6.7922]
[1741376257234,73.49756641,147.27,147.16,32.58]
[1741376257636,5.348e-05,147.23,147.2,0.04798346]
[1741376257930,32.58,147.31,147.2,40.89756641]
[1741376258140,40.89756641,147.33,147.21,39.9662]
[1741376258333,40.89756641,147.36,147.23,40.89756641]
[1741376258527,6.7879,147.34,147.29,6.7894]
[1741376258734,0.04981781,147.33,147.3,0.04400372]
[1741376258928,40.94738422,147.33,147.3,0.04400372]
[1741376259133,6.7889,147.31,147.3,0.04400372]
[1741376259727,6.7886,147.32,147.3,0.04400372]
[1741376260028,40.94738422,147.33,147.3,0.04400372]
[1741376260338,0.04981781,147.33,147.3,0.04400372]
[1741376260727,6.7887,147.32,147.3,0.04400372]
[1741376261325,6.7884,147.32,147.3,0.04400372]
[1741376261527,0.04981781,147.33,147.3,0.04400372]
[1741376261923,0.04981781,147.33,147.3,3.65762889]
[1741376262436,6.7884,147.32,147.3,0.04400372]
[1741376262837,0.04981781,147.33,147.3,0.04400372]
[1741376263334,0.04981781,147.33,147.3,3.65762889]
[1741376263529,0.04981781,147.33,147.3,0.04400372]
[1741376263929,0.04981781,147.33,147.3,6.83300372]
[1741376264137,0.04981781,147.33,147.3,0.04400372]
[1741376264329,0.04981781,147.33,147.3,3.65762889]
[1741376264528,6.83781781,147.33,147.3,3.65762889]
[1741376264736,0.04981781,147.33,147.3,3.65762889]
[1741376264939,0.04981781,147.33,147.3,0.04400372]
[1741376265138,6.7889,147.31,147.3,0.04400372]
[1741376265837,0.04981781,147.33,147.3,0.04400372]
[1741376266338,6.7889,147.31,147.3,0.04400372]
[1741376267135,6.7886,147.32,147.3,0.04400372]
[1741376267331,0.04981781,147.33,147.3,0.04400372]
[1741376267735,6.83791781,147.33,147.3,0.04400372]
[1741376268228,0.04981781,147.33,147.3,0.04400372]
[1741376268433,6.83791781,147.33,147.3,0.04400372]
[1741376268928,6.7886,147.32,147.3,0.04400372]
[1741376269529,6.7889,147.31,147.3,0.04400372]
[1741376269739,0.04981781,147.33,147.3,0.04400372]
[1741376270043,6.7887,147.32,147.3,0.04400372]
[1741376271239,0.04981781,147.33,147.3,0.04400372]
[1741376271735,0.04981781,147.33,147.32,6.7884]
[1741376272241,0.04981781,147.33,147.32,3.61362517]
[1741376273335,0.04981781,147.33,147.32,6.7884]
[1741376273636,0.04981781,147.33,147.31,7.7021]
[1741376273834,0.04981781,147.33,147.31,18.10432517]
[1741376274840,0.04981781,147.33,147.32,6.7884]
[1741376275243,73.43756641,147.39,147.32,3.61362517]
[1741376275633,6.7865,147.37,147.33,6.7877]
[1741376275944,73.43756641,147.39,147.32,3.61362517]
[1741376276240,0.05147136,147.37,147.34,0.04756511]
[1741376277942,6.7868,147.36,147.34,0.04756511]
[1741376278845,6.7871,147.35,147.34,0.04756511]
[1741376279237,25.10212,147.36,147.25,7.7867]
[1741376279440,25.10212,147.36,147.28,6.7899]
[1741376279642,25.10212,147.36,147.25,11.40032517]
[1741376279944,6.7887,147.32,147.29,6.7897]
[1741376280147,32.52,147.33,147.29,10.40332517]
[1741376280441,0.04395502,147.32,147.3,0.0500719]
[1741376280945,6.83265502,147.32,147.3,0.0500719]
[1741376281247,0.04395502,147.32,147.3,0.0500719]
[1741376281648,0.04395502,147.32,147.31,6.7889]
[1741376282145,0.04395502,147.32,147.31,3.61362517]
[1741376282737,0.1205,147.41,147.3,0.0500719]
[1741376282939,32.52,147.41,147.31,25.10212]
[1741376283140,6.7834,147.43,147.39,6.7849]
[1741376283349,25.10212,147.44,147.34,3.8855]
[1741376283645,6.7851,147.4,147.36,6.7865]
[1741376283950,6.7851,147.4,147.34,3.8855]
[1741376283951,0.0439191,147.39,147.37,0.04738084]
[1741376284140,0.0439191,147.39,147.37,3.66100601]
[1741376284337,25.10212,147.44,147.37,3.66100601]
[1741376284552,0.0501038,147.39,147.37,0.04738084]
[1741376284850,25.10212,147.44,147.37,6.83338084]
[1741376285149,25.10212,147.44,147.37,0.04738084]
[1741376285340,0.0470387,147.42,147.37,0.04738084]
[1741376285541,0.0470387,147.42,147.38,6.7855]
[1741376285946,0.0470387,147.42,147.37,0.04738084]
[1741376286153,0.0470387,147.42,147.41,6.7843]
[1741376286550,0.0470387,147.42,147.41,10.39792517]
[1741376286849,0.0470387,147.42,147.41,3.61362517]
[1741376287043,0.0470387,147.42,147.4,6.83602671]
[1741376287044,0.0470387,147.42,147.4,0.05142671]
[1741376287245,6.7843,147.41,147.4,0.05142671]
[1741376287946,0.0470387,147.42,147.4,0.05142671]
[1741376288646,6.7843,147.41,147.4,0.05142671]
[1741376288852,25.10212,147.41,147.34,7.5951]
[1741376289151,25.10212,147.41,147.34,11.20872517]
[1741376289351,6.7855,147.39,147.34,11.20872517]
[1741376289551,25.10212,147.41,147.34,11.20872517]
[1741376289753,6.7853,147.39,147.34,11.20872517]
[1741376289952,6.83489334,147.39,147.36,0.05135279]
[1741376290153,0.04959334,147.39,147.36,0.05135279]
[1741376290452,6.7857,147.38,147.36,3.66497796]
[1741376290650,0.04959334,147.39,147.36,3.66497796]
[1741376291452,0.04959334,147.39,147.36,0.05135279]
[1741376291656,32.5,147.43,147.36,0.05135279]
[1741376292546,6.7838,147.42,147.38,6.7854]
[1741376292741,0.04896267,147.41,147.34,7.5951]
[1741376292948,0.04896267,147.41,147.39,0.04777602]
[1741376293252,0.04896267,147.41,147.34,7.5951]
[1741376293455,0.04896267,147.41,147.39,0.04944614]
[1741376293655,32.48,147.47,147.36,25.10212]
[1741376293852,145.6498364,147.49,147.36,25.10212]
[1741376294058,6.7818,147.47,147.43,6.7831]
[1741376294452,6.7814,147.48,147.44,6.7826]
[1741376294759,25.10212,147.5,147.38,32.48]
[1741376295055,0.04602552,147.47,147.45,0.0427578]
[1741376296453,32.46,147.46,147.45,0.0427578]
[1741376296855,39.242,147.46,147.45,0.0427578]
[1741376297553,0.04602552,147.47,147.45,0.0427578]
[1741376298256,0.04602552,147.47,147.46,6.782]
[1741376298854,0.04602552,147.47,147.45,0.0427578]
[1741376299053,0.04602552,147.47,147.45,3.65638297]
[1741376299258,0.04602552,147.47,147.45,0.0427578]
[1741376300561,32.46,147.54,147.49,6.7803]
[1741376300864,32.46,147.54,147.42,7.8628]
[1741376301158,32.46,147.54,147.47,6.7812]
[1741376301358,6.7793,147.52,147.42,7.8628]
[1741376301558,32.46,147.54,147.42,7.8628]
[1741376301760,32.46,147.54,147.46,6.8262167]
[1741376301963,6.7799,147.51,147.46,0.0445167]
[1741376302158,6.7799,147.51,147.46,3.65814187]
[1741376302362,32.46,147.54,147.46,0.0445167]
[1741376302962,32.46,147.54,147.46,3.65814187]
[1741376303359,32.46,147.54,147.46,0.0445167]
[1741376303962,228.70212,147.59,147.46,0.0445167]
[1741376304155,6.7766,147.58,147.47,25.10212]
[1741376304359,32.44,147.6,147.51,0.0483988]
[1741376304663,32.44,147.6,147.47,25.10212]
[1741376304664,6.7779,147.55,147.52,6.7791]
[1741376304863,57.54212,147.6,147.54,0.04994958]
[1741376305062,57.54212,147.6,147.47,25.10212]
[1741376305258,6.7769,147.58,147.56,0.05200197]
[1741376305456,57.54212,147.6,147.47,25.10212]
[1741376305655,57.54212,147.6,147.48,3.7814]
[1741376305855,25.10212,147.57,147.52,0.04501733]
[1741376306067,25.10212,147.57,147.48,7.39502517]
[1741376306256,6.7775,147.56,147.53,0.05077753]
[1741376306458,32.44,147.59,147.53,0.05077753]
[1741376306864,6.7767,147.58,147.53,3.6644027]
[1741376307064,32.44,147.59,147.53,3.6644027]
[1741376307364,6.7768,147.58,147.53,10.4429027]
[1741376307760,32.44,147.59,147.53,10.4429027]
[1741376307961,6.7772,147.57,147.53,3.6644027]
[1741376308457,6.7768,147.58,147.53,0.05077753]
[1741376308658,57.52212,147.6,147.53,0.05077753]
[1741376309665,25.10212,147.65,147.53,0.05077753]
[1741376309968,25.10212,147.65,147.53,25.10212]
[1741376310173,170.59140018,147.68,147.58,0.05182279]
[1741376310365,203.01140018,147.68,147.56,57.52212]
[1741376310565,6.7739,147.64,147.62,0.05068989]
[1741376310777,57.52212,147.68,147.62,0.05068989]
[1741376311369,25.10212,147.65,147.62,0.05068989]
[1741376311867,6.774,147.64,147.62,0.05068989]
[1741376312374,6.7742,147.63,147.62,0.05068989]
[1741376312574,32.4,147.66,147.62,0.05068989]
[1741376312870,6.774,147.64,147.62,0.05068989]
[1741376313064,32.4,147.66,147.62,0.05068989]
[1741376314172,6.774,147.64,147.62,0.05068989]
[1741376315666,32.4,147.66,147.62,0.05068989]
[1741376315869,6.7742,147.63,147.62,0.05068989]
[1741376317777,6.7739,147.64,147.62,0.05068989]
[1741376317970,32.4,147.66,147.62,0.05068989]
[1741376318772,25.10212,147.63,147.52,40.0478]
[1741376319077,25.10212,147.6,147.52,11.28142517]
[1741376319378,25.10212,147.63,147.47,3.7222]
[1741376319379,25.10212,147.57,147.47,3.7222]
[1741376319579,25.10212,147.57,147.47,7.33582517]
[1741376319877,0.04664259,147.53,147.51,0.05049493]
[1741376320071,0.04664259,147.53,147.51,3.6641201]
[1741376320274,0.05153867,147.53,147.51,0.05049493]
[1741376320778,32.38,147.59,147.53,6.7784]
[1741376320979,32.38,147.59,147.49,32.38]
[1741376321574,32.38,147.59,147.49,35.99362517]
[1741376321876,32.38,147.59,147.53,0.04641947]
[1741376322278,32.38,147.59,147.53,3.66004464]
[1741376322776,32.38,147.59,147.53,0.04641947]
[1741376322978,25.10212,147.57,147.53,0.04641947]
[1741376323483,6.7783,147.54,147.53,0.04641947]
[1741376324178,25.10212,147.57,147.53,0.04641947]
[1741376325174,57.48212,147.6,147.54,6.7782]
[1741376325379,32.38,147.6,147.47,25.10212]
[1741376325587,32.38,147.6,147.56,0.04590905]
[1741376325780,32.38,147.6,147.57,0.04414278]
[1741376325977,32.38,147.6,147.48,3.9512]
[1741376326179,32.38,147.6,147.57,0.04956073]
[1741376326484,25.10212,147.58,147.57,0.04665321]
[1741376326984,31.87862,147.58,147.57,0.04665321]
[1741376327880,6.7765,147.58,147.57,0.04665321]
[1741376328083,6.7762,147.59,147.57,0.04665321]
[1741376328284,25.10212,147.61,147.57,0.04665321]
[1741376328580,6.7765,147.58,147.57,0.04665321]
[1741376328788,25.10212,147.61,147.57,0.04665321]
[1741376329281,6.7759,147.6,147.57,0.04665321]
[1741376329585,235.74,147.63,147.57,0.04665321]
[1741376329884,6.7758,147.6,147.57,0.04665321]
[1741376330378,32.36,147.68,147.57,0.04665321]
[1741376330584,32.36,147.68,147.56,3.6292]
[1741376330789,6.7731,147.66,147.61,0.0520248]
[1741376330987,32.36,147.68,147.61,0.0520248]
[1741376331293,25.10212,147.7,147.61,0.0520248]
[1741376331582,25.10212,147.7,147.64,0.04779986]
[1741376331785,57.46212,147.7,147.64,0.04779986]
[1741376332177,6.7722,147.68,147.64,0.04779986]
[1741376332383,25.10212,147.77,147.64,0.04779986]
[1741376332686,25.10212,147.73,147.69,0.05035178]
[1741376333381,31.87182,147.73,147.69,0.05035178]
[1741376333582,3.6505,147.76,147.69,0.05035178]
[1741376333785,25.10212,147.77,147.69,0.05035178]
[1741376334183,25.10212,147.77,147.69,3.66397695]
[1741376334387,25.10212,147.77,147.69,0.05035178]
[1741376335185,25.10212,147.7,147.5,57.44212]
[1741376335387,25.10212,147.71,147.52,7.4113]
[1741376335388,25.10212,147.63,147.52,7.4113]
[1741376335584,32.34,147.62,147.53,3.7911]
[1741376335988,25.10212,147.6,147.53,3.61362517]
[1741376336179,0.04972096,147.59,147.56,0.04916655]
[1741376336380,6.82582096,147.59,147.56,0.04916655]
[1741376336581,6.82582096,147.59,147.56,3.66279172]
[1741376337197,0.04972096,147.59,147.56,3.66279172]
[1741376337386,0.04972096,147.59,147.56,0.04916655]
[1741376337583,0.04972096,147.59,147.56,6.82656655]
[1741376337885,0.04972096,147.59,147.56,3.66279172]
[1741376338091,32.34,147.58,147.56,0.04916655]
[1741376338884,32.34,147.58,147.56,25.42916655]
[1741376339383,32.34,147.58,147.56,29.04279172]
[1741376339586,6.7769,147.57,147.56,25.42916655]
[1741376340090,6.7787,147.54,147.49,3.7596]
[1741376340289,57.44212,147.58,147.49,7.37322517]
[1741376340706,6.7785,147.54,147.49,7.37322517]
[1741376340891,57.44212,147.58,147.49,7.37322517]
[1741376341091,57.44212,147.58,147.5,0.04442258]
[1741376341092,0.04583911,147.53,147.5,0.04442258]
[1741376341486,0.04583911,147.53,147.5,3.65804775]
[1741376341687,6.7797,147.51,147.5,3.65804775]
[1741376342692,6.7797,147.51,147.5,0.04442258]
[1741376344093,32.36583911,147.53,147.5,0.04442258]
[1741376344291,0.04583911,147.53,147.5,0.04442258]
[1741376344488,32.34,147.57,147.5,0.04442258]
[1741376344791,6.7757,147.6,147.53,6.7785]
[1741376344992,57.44212,147.61,147.51,3.7087]
[1741376345592,0.0509794,147.57,147.55,0.05014701]
[1741376345986,0.0509794,147.57,147.55,3.66377218]
[1741376346193,0.0509794,147.57,147.55,0.05014701]
[1741376346496,32.32,147.56,147.46,36.25]
[1741376346693,25.10212,147.55,147.46,7.54362517]
[1741376347290,32.32,147.56,147.46,3.93]
[1741376347597,0.04300004,147.52,147.51,6.7797]
[1741376347798,39.0975,147.56,147.51,6.7797]
[1741376347997,0.04293448,147.53,147.5,0.04911033]
[1741376348199,0.04293448,147.53,147.5,6.82921033]
[1741376348504,0.04293448,147.53,147.46,3.93]
[1741376348699,25.10212,147.47,147.2,24.0]
[1741376348902,25.10212,147.32,147.22,3.6635]
[1741376349207,57.42212,147.32,147.22,3.6635]
[1741376349493,32.32,147.32,147.25,6.7917]
[1741376349698,32.32,147.32,147.26,0.05025132]
[1741376349699,0.05081385,147.28,147.26,0.05025132]
[1741376350595,32.32,147.36,147.26,3.45025132]
[1741376350901,39.1065,147.37,147.28,6.7898]
[1741376351096,39.1065,147.37,147.24,32.32]
[1741376351292,39.1065,147.37,147.24,73.09178386]
[1741376351902,0.0451805,147.32,147.29,0.04794345]
[1741376352088,6.7867,147.36,147.29,0.04794345]
[1741376352294,40.77178386,147.36,147.29,0.04794345]
[1741376352499,40.77178386,147.33,147.29,0.04794345]
[1741376352895,32.34,147.32,147.29,0.04794345]
[1741376353296,32.38394889,147.32,147.29,0.04794345]
[1741376353502,6.7894,147.3,147.29,0.04794345]
[1741376353699,47.56118386,147.3,147.29,0.04794345]
[1741376353910,40.77178386,147.3,147.23,3.67]
[1741376354199,6.7907,147.28,147.23,3.67]
[1741376354407,40.77178386,147.3,147.23,3.67]
[1741376354606,6.7913,147.26,147.23,3.67]
[1741376354904,73.11178386,147.27,147.22,3.6635]
[1741376355102,0.04367586,147.26,147.23,0.05017353]
[1741376355296,6.7921,147.24,147.23,0.05017353]
[1741376355501,47.56388386,147.24,147.23,0.05017353]
[1741376356003,6.7939,147.21,147.16,3.6988]
[1741376356205,32.36,147.22,147.16,3.6988]
[1741376356498,32.36,147.22,147.13,3.6988]
[1741376356499,40.77178386,147.21,147.13,3.6988]
[1741376356714,40.77178386,147.18,147.0,231.77178386]
[1741376356999,73.13178386,147.18,147.08,3.6988]
[1741376357205,0.04807436,147.1,147.09,3.6591]
[1741376357503,0.05007501,147.11,147.09,3.6591]
[1741376357700,73.13178386,147.18,147.09,3.6591]
[1741376358003,0.04662082,147.11,147.09,3.7064218]
[1741376358205,40.77178386,147.15,147.09,3.6591]
[1741376358403,6.7986,147.1,147.09,0.05133494]
[1741376358703,6.7986,147.1,147.04,32.36]
[1741376358905,6.7986,147.1,147.08,0.05001695]
[1741376359104,6.7991,147.09,147.08,0.05001695]
[1741376360406,6.8014,147.04,147.01,1.36045166]
[1741376360708,32.36,147.07,146.99,3.7035]
[1741376361005,6.8009,147.05,146.99,10.5071]
[1741376361207,6.8009,147.05,146.99,3.7035]
[1741376361607,0.0459315,147.03,147.01,0.04855858]
[1741376366501,79.95408386,147.02,147.01,0.04855858]
[1741376366706,0.0459315,147.03,147.01,0.04855858]
[1741376367116,40.81771536,147.03,147.01,0.04855858]
[1741376367612,40.81771536,147.03,146.94,6.8059]
[1741376367913,40.77178386,147.0,146.94,6.8059]
[1741376368110,40.77178386,147.0,146.89,3.6945]
[1741376368310,32.4,147.0,146.89,3.6945]
[1741376368614,40.77178386,147.03,146.89,3.6945]
[1741376368817,0.05005365,146.96,146.93,0.04933185]
[1741376369106,32.4,147.02,146.89,3.6945]
[1741376369414,0.04317434,146.96,146.95,6.8052]
[1741376369710,32.4,147.02,146.89,3.6945]
[1741376370011,32.4,147.02,146.97,6.8043]
[1741376370214,32.4,147.02,146.89,3.6945]
[1741376370612,32.4,147.02,146.97,6.8042]
[1741376371006,0.0440258,147.01,146.89,3.6945]
[1741376371212,32.4,147.02,146.98,6.8038]
[1741376371606,0.05089326,147.01,146.98,6.8038]
[1741376371812,0.05089326,147.01,147.0,6.8032]
[1741376372001,32.4,147.08,146.94,40.77178386]
[1741376372201,0.2,147.02,146.94,40.77178386]
[1741376372409,40.77178386,147.09,146.97,40.77178386]
[1741376372610,40.77178386,147.09,146.98,39.9666]
[1741376372808,40.77178386,147.09,147.06,6.8003]
[1741376373003,145.97326158,147.18,147.0,40.77178386]
[1741376373209,0.04547386,147.09,147.06,0.04996743]
[1741376373410,40.77178386,147.15,147.03,32.4]
[1741376373606,0.04412401,147.09,147.06,0.05053687]
[1741376373812,40.77178386,147.15,147.03,32.4]
[1741376374119,40.77178386,147.15,147.11,6.7978]
[1741376374619,0.04778448,147.14,147.12,0.04411419]
[1741376375114,0.04778448,147.14,147.12,6.84171419]
[1741376375421,0.04778448,147.14,147.12,0.04411419]
[1741376376019,0.04778448,147.14,147.03,32.4]
[1741376376218,40.77178386,147.11,147.03,32.4]
[1741376376418,40.77178386,147.11,147.07,6.7997]
[1741376376920,40.77178386,147.11,146.99,32.38]
[1741376377117,40.77178386,147.14,147.0,40.77178386]
[1741376377316,9.55e-06,147.06,147.04,0.04324915]
[1741376377517,40.77178386,147.14,147.01,3.9442]
[1741376378022,40.77178386,147.14,147.1,6.7983]
[1741376378319,32.38,147.15,147.01,3.9442]
[1741376378517,40.77178386,147.12,147.01,3.9442]
[1741376378717,0.04831239,147.09,147.07,0.04326716]
[1741376379322,0.04831239,147.09,147.08,6.7993]
[1741376379818,0.04831239,147.09,147.07,6.84306716]
[1741376380021,0.04831239,147.09,147.07,0.04326716]
[1741376380422,6.84771239,147.09,147.07,0.04326716]
[1741376380722,0.04831239,147.09,147.07,0.04326716]
[1741376382020,40.82009625,147.09,147.07,0.04326716]
[1741376382214,40.82009625,147.09,147.01,3.9442]
[1741376382419,6.8009,147.06,147.01,10.7467]
[1741376382622,6.8009,147.06,146.98,9.40086604]
[1741376382623,32.38,147.05,146.98,5.62466604]
[1741376383328,57.585433,147.05,146.98,5.62466604]
[1741376383526,0.04841962,147.03,147.0,0.04527387]
[1741376384423,0.04841962,147.03,147.02,6.8023]
[1741376387224,73.31916428,147.09,147.07,6.7996]
[1741376387430,32.38,147.09,146.98,46.56383032]
[1741376387619,73.31916428,147.09,146.98,5.62466604]
[1741376387825,6.8005,147.06,146.98,5.62466604]
[1741376388128,73.31916428,147.09,146.98,5.62466604]
[1741376388431,6.84425257,147.05,147.02,6.84815456]
[1741376388633,0.04305257,147.05,147.02,0.04595456]
[1741376388936,0.04305257,147.05,147.04,6.8014]
[1741376390738,73.31916428,147.12,147.02,0.04595456]
[1741376390926,73.31916428,147.12,147.0,3.976]
[1741376391528,80.11686428,147.12,147.0,3.976]
[1741376391727,0.05175339,147.07,147.05,0.05051408]
[1741376391931,73.31916428,147.12,147.09,6.7987]
[1741376392131,3.9339,147.15,147.02,40.93916428]
[1741376392132,6.94e-06,147.07,147.02,40.93916428]
[1741376392333,32.36,147.13,147.02,40.93916428]
[1741376393237,0.04319832,147.09,147.06,0.05128055]
[1741376393735,0.04319832,147.09,147.08,6.7995]
[1741376393939,9.832e-05,147.09,147.08,6.7995]
[1741376394740,9.832e-05,147.09,147.06,0.05128055]
[1741376394939,9.832e-05,147.09,147.08,6.7995]
[1741376402040,9.832e-05,147.09,147.08,51.13866428]
[1741376402246,40.93916428,147.28,147.09,13.5977]
[1741376402247,32.34,147.23,147.09,13.5977]
[1741376402441,6.794,147.2,147.1,3.9007]
[1741376402647,6.794,147.2,147.11,32.34]
[1741376403245,6.794,147.2,147.14,0.04898472]
[1741376403547,0.0424359,147.17,147.16,6.7958]
[1741376403944,40.93916428,147.21,147.14,6.7967]
[1741376404251,32.34,147.23,147.15,0.04413618]
[1741376404252,40.98160018,147.18,147.15,0.04413618]
[1741376404444,6.7958,147.16,147.15,0.04413618]
[1741376404749,6.7958,147.16,147.08,32.34]
[1741376404943,6.7958,147.16,147.08,40.1988]
[1741376405144,32.34,147.18,147.08,40.1988]
[1741376405346,32.34,147.22,147.09,25.14626081]
[1741376405542,6.7936,147.21,147.09,25.14626081]
[1741376405739,32.34,147.22,147.09,25.14626081]
[1741376405740,32.34,147.22,147.1,32.34]
[1741376405939,0.05113252,147.16,147.14,0.05107181]
[1741376406143,25.14626081,147.2,147.14,0.05107181]
[1741376406455,0.04616863,147.16,147.14,0.05107181]
[1741376406748,6.84226863,147.16,147.14,0.05107181]
[1741376406949,0.04616863,147.16,147.14,0.05107181]
[1741376408351,0.04616863,147.16,147.15,6.7963]
[1741376409449,6.7963,147.15,147.14,0.05107181]
[1741376410953,6.7972,147.13,147.08,7.8588]
[1741376411355,57.46626081,147.17,147.08,7.8588]
[1741376411653,6.797,147.14,147.08,7.8588]
[1741376411843,57.46626081,147.17,147.08,7.8588]
[1741376412042,0.05128133,147.14,147.11,0.04430312]
[1741376412240,25.19754214,147.14,147.11,0.04430312]
[1741376412843,6.7977,147.12,147.11,0.04430312]
[1741376413042,25.19754214,147.14,147.11,0.04430312]
[1741376413246,31.99454214,147.14,147.11,0.04430312]
[1741376413455,0.05128133,147.14,147.11,0.04430312]
[1741376414653,6.7975,147.13,147.11,0.04430312]
[1741376415053,31.93996081,147.21,147.17,6.795]
[1741376415252,25.14626081,147.21,147.12,3.8447]
[1741376415854,6.7956,147.17,147.13,6.797]
[1741376416054,25.14626081,147.21,147.12,3.8447]
[1741376416250,25.14626081,147.24,147.14,0.04487074]
[1741376416561,39.0932,147.22,147.12,3.8447]
[1741376416754,32.3,147.22,147.12,3.8447]
[1741376416950,6.7935,147.21,147.17,6.7949]
[1741376417155,6.7935,147.21,147.12,3.8447]
[1741376417357,32.3,147.22,147.12,3.8447]
[1741376417660,0.0415951,147.18,147.15,0.052294]
[1741376418058,0.0415951,147.18,147.17,6.7954]
[1741376418655,9.51e-05,147.18,147.17,6.7954]
[1741376419256,9.51e-05,147.18,147.17,10.1954]
[1741376419560,25.14626081,147.31,147.17,28.54626081]
[1741376419762,57.44626081,147.31,147.17,25.14626081]
[1741376420059,64.23526081,147.31,147.27,6.7906]
[1741376420259,64.23526081,147.31,147.2,32.3]
[1741376420563,64.23526081,147.31,147.21,7.4084]
[1741376420757,64.23526081,147.31,147.24,0.05173622]
[1741376420957,32.3,147.31,147.24,0.05173622]
[1741376421166,32.3,147.31,147.26,6.7909]
[1741376421462,6.7898,147.29,147.21,7.4084]
[1741376421761,32.3,147.31,147.21,7.4084]
[1741376422062,32.3,147.31,147.24,0.04831714]
[1741376422458,6.7895,147.3,147.24,6.84031714]
[1741376422763,32.28,147.31,147.24,0.04831714]
[1741376422957,6.7897,147.3,147.24,6.84011714]
[1741376423158,6.7897,147.3,147.24,0.04831714]
[1741376423759,6.7897,147.3,147.25,6.7913]
[1741376423966,6.7891,147.31,147.24,0.04831714]
[1741376424161,6.7891,147.31,147.21,7.4084]
[1741376424367,229.08626081,147.35,147.26,6.83810601]
[1741376424368,32.28,147.34,147.26,6.83810601]
[1741376424565,32.28,147.34,147.21,7.4084]
[1741376424766,32.28,147.34,147.29,0.05201362]
[1741376424965,6.7897,147.3,147.25,6.7914]
[1741376425167,32.28,147.34,147.25,6.7914]
[1741376425369,6.7897,147.3,147.26,0.04908006]
[1741376426568,6.7897,147.3,147.26,6.83998006]
[1741376427970,6.79,147.29,147.26,6.83998006]
[1741376428166,32.28,147.34,147.26,0.04908006]
[1741376428466,6.7902,147.29,147.26,0.04908006]
[1741376429265,32.28,147.34,147.26,6.84028006]
[1741376429471,25.14626081,147.32,147.26,0.04908006]
[1741376429670,6.7906,147.28,147.26,0.04908006]
[1741376429871,25.14626081,147.32,147.26,0.04908006]
[1741376430263,6.7907,147.27,147.26,0.04908006]
[1741376430465,25.14626081,147.32,147.26,0.04908006]
[1741376430779,6.7897,147.3,147.26,6.83988006]
[1741376430973,32.28,147.34,147.26,0.04908006]
[1741376431270,32.28,147.34,147.26,6.84008006]
[1741376431868,32.28,147.34,147.26,0.04908006]
[1741376432969,6.7901,147.29,147.26,1.85682327]
[1741376433171,32.28,147.34,147.26,1.85682327]
[1741376433976,6.7897,147.3,147.26,8.64802327]
[1741376434766,57.38626081,147.3,147.26,1.85682327]
[1741376434973,25.14626081,147.27,147.23,1.80652408]
[1741376435676,25.14626081,147.33,147.23,1.80652408]
[1741376435978,0.04392867,147.29,147.27,0.04739628]
[1741376436662,6.83372867,147.29,147.27,0.04739628]
[1741376436867,0.04392867,147.29,147.27,6.83799628]
[1741376437476,0.04392867,147.29,147.27,0.04739628]
[1741376438282,22.48495998,147.28,147.27,0.04739628]
[1741376439682,0.04392867,147.29,147.27,0.04739628]
[1741376441377,6.83402867,147.29,147.27,0.04739628]
[1741376441577,0.04392867,147.29,147.27,0.04739628]
[1741376441980,6.7903,147.28,147.27,0.04739628]
[1741376442182,6.7903,147.28,147.23,1.80652408]
[1741376442183,15.69465998,147.28,147.23,1.80652408]
[1741376442377,0.04392867,147.29,147.23,1.80652408]
[1741376442378,15.69465998,147.26,147.23,1.80652408]
[1741376442577,15.69465998,147.24,147.21,1.82484763]
[1741376442881,15.69465998,147.22,147.18,1.82687469]
[1741376443074,6.7944,147.19,147.18,0.16153287]